Cogmind - Beta 13 @@@ ROGUE MODE // 2024.04.03 @ 10:53:34 Player: Ehseezed Result: Destroyed by as-42823 with Assembled Rifle Performance ------------- Evolutions (0) 0 Regions Visited (0) 0 Robots Destroyed (2) 10 Value Destroyed (59) 59 Prototype IDs (0) 0 Alien Tech Used (0) 0 Bonus (0) 0 TOTAL SCORE: 69 Bonus ------- None Cogmind --------- Core Integrity 0/250 Matter 278/300 Energy 99/100 System Corruption 0% Temperature Cool (0) Movement Core (100) Ox1 Location -11/Scrapyard Parts ------- > --- POWER (1) -------- (None) > --- PROPULSION (2) --- (None) > --- UTILITY (2) ------ Small Storage Unit > --- WEAPON (2) ------- (None) > --- INVENTORY (8) ---- Ion Engine Compact Wheel Peak State ------------ > --- POWER ------------ Ion Engine > --- PROPULSION ------- Wheel Compact Wheel > --- UTILITY ---------- (None) > --- WEAPON ----------- Small Laser Small Laser > --- INVENTORY -------- Light Treads Assault Rifle [Rating: 5] Favorites ----------- Power Ion Engine Engine Ion Engine Propulsion Compact Wheel Treads Light Treads Wheel Compact Wheel Utility Small Storage Unit Storage Small Storage Unit Weapon Small Laser Energy Gun Small Laser Ballistic Gun Assault Rifle Build | -11 ------- Run | Yrd Slots Evolved . | . Power . | . Propulsion . | . Utility . | . Weapon . | . Parts Attached 11 | 11 Power 1 | 1 Engine 1 | 1 Core . | . Reactor . | . Propulsion 6 | 6 Treads 2 | 2 Leg . | . Wheel 4 | 4 Hover . | . Flight . | . Utility 1 | 1 Device . | . Storage 1 | 1 Processor . | . Hackware . | . Protection . | . Artifact . | . Weapon 3 | 3 Energy Gun 2 | 2 Energy Cannon . | . Ballistic Gun 1 | 1 Ballistic Cannon . | . Launcher . | . Special Weapon . | . Impact Weapon . | . Slashing Weapon . | . Piercing Weapon . | . Special Melee Weapon . | . Unidentified Prototypes . | . Parts Lost 6 | 6 Power 1 | 1 Propulsion 2 | 2 Utility . | . Weapon 3 | 3 Highest Loss Streak 6 | 6 To Critical Strikes . | . Average Slot Usage (%) . | . Naked Turns . | . Heaviest Build 7 | 7 Greatest Support 40 | 40 Greatest Overweight (x) 1 | 1 Average Overweight (x) . | . Largest Inventory Capacity 8 | 8 Average Capacity 5 | 5 Most Carried 5 | 5 Average Carried 3 | 3 Final Capacity 8 | 8 Final Carried 2 | 2 Class Distribution -------------------- None Dominant Class ---------------- None Resources | -11 ----------- Run | Yrd Matter Collected 270 | 270 Remotely . | . Salvage Created 132 | 132 Parts 1 | 1 Haulers Intercepted . | . Recyclers Shooed . | . Parts Field Recycled . | . Retrieved Matter . | . Parts Self-Destructed . | . Prevented . | . Kills | -11 ------- Run | Yrd Combat Hostiles Destroyed 6 | 6 Guns 6 | 6 Classes Destroyed 3 | 3 Recycler 1 | 1 Demolisher 1 | 1 Assembled 5 | 5 Best Kill Streak 6 | 6 Combat Bots Only 6 | 6 Max Kills in Single Turn 2 | 2 Gunslinging 1 | 1 Exploded . | . Melee . | . Uniques/NPCs Destroyed . | . Combat | -11 -------- Run | Yrd Hostile Shots Fired 68 | 68 Missed 21 | 21 Damage Taken 671 | 671 Core 250 | 250 Absorbed by Shields . | . Core Remaining (%) . | . Volleys Fired 15 | 15 Largest 2 | 2 Hottest 80 | 80 Shots Fired 25 | 25 Gun 25 | 25 Cannon . | . Launcher . | . Special . | . Kinetic 4 | 4 Thermal 21 | 21 Explosive . | . Electromagnetic . | . Robot Hit Streak 8 | 8 Robot Miss Streak 2 | 2 Penetration Max . | . Secondary Targets 3 | 3 Max Gunslinging Chain 1 | 1 Shots Hit Robots 18 | 18 Core Hits 14 | 14 Critical Kills . | . Critical Parts Destroyed . | . Critical Strikes . | . Melee Attacks . | . Impact . | . Slashing . | . Piercing . | . Sneak Attacks . | . Combat Hostiles . | . Follow-up Attacks . | . Damage Inflicted 200 | 200 Guns 200 | 200 Cannons . | . Explosions . | . Melee . | . Ramming . | . Kinetic 12 | 12 Thermal 188 | 188 Explosive . | . Electromagnetic . | . Impact . | . Slashing . | . Piercing . | . Highest Corruption . | . Average Corruption . | . Corruption Purged . | . Corruption Blocked . | . Overload Shots . | . Overflow Damage . | . Projectiles . | . Explosions . | . Melee . | . Knockbacks . | . Impact . | . Kinetic . | . Secondary . | . Self-Inflicted Damage . | . Shots . | . Rammed . | . Targets Rammed . | . Kicked . | . Crushed . | . Highest Temperature 65 | 65 Average Temperature 33 | 33 Received Heat Transfer . | . Siege Activations . | . Robots Corrupted . | . Combat Hostiles . | . Parts Fried . | . Impact Corruptions . | . Robots Melted . | . Combat Hostiles . | . Parts Melted 1 | 1 Heat Transferred 425 | 425 Parts Sabotaged . | . Parts Stolen . | . Parts Stripped . | . Power Chain Reactions . | . Alert | -11 ------- Run | Yrd Peak Influence 30 | 30 Initial . | . Average 2 | 2 Maximum Alert Level . | . Low Security (%) 100 | 100 Level 1 . | . Level 2 . | . Level 3 . | . Level 4 . | . Level 5 . | . High Security . | . Max Security . | . Squads Dispatched . | . Investigation . | . Extermination . | . Reinforcement . | . Assault . | . Garrison . | . Intercept . | . Searches Triggered . | . Construction Impeded . | . Haulers Reinforced . | . Active Scanning Responses . | . Cargo Convoy Interrupts . | . Stealth | -11 --------- Run | Yrd Distress Signals . | . Communications Jammed . | . Distress Signals . | . Times Spotted 21 | 21 Peak Tracking Total 21 | 21 Tactical Retreats 1 | 1 Traps | -11 ------- Run | Yrd Traps Triggered . | . Indirectly . | . Trap Hack Attempts . | . Triggered . | . Disarmed . | . Reprogrammed . | . Reused . | . Traps Extracted . | . Installed . | . Triggered . | . Machines | -11 ---------- Run | Yrd Machines Disabled . | . Max in Single Turn . | . Machines Repaired . | . Machines Dismantled . | . Machines Sabotaged . | . Overloaded Fab Kills . | . Hacking | -11 --------- Run | Yrd Machines Accessed . | . Terminals . | . Fabricators . | . Repair Stations . | . Recycling Units . | . Scanalyzers . | . Garrison Access . | . Total Hacks . | . Successful . | . Failed . | . Catastrophic . | . Database Lockouts . | . Manual . | . Terminals . | . Fabricators . | . Repair Stations . | . Recycling Units . | . Scanalyzers . | . Garrison Access . | . Terminal Hacks . | . Fabricator Hacks . | . Repair Station Hacks . | . Recycling Unit Hacks . | . Scanalyzer . | . Garrison Access Hacks . | . Unauthorized Hacks . | . Terminals . | . Fabricators . | . Repair Stations . | . Recycling Units . | . Scanalyzers . | . Garrison Access . | . Data Cores Recovered . | . Used . | . Hacking Detections . | . Full Trace Events . | . Feedback Events . | . Feedback Blocked . | . Robot Schematics Acquired . | . Robots Built . | . Authchips . | . Time . | . Total Robot Build Rating . | . Part Schematics Acquired . | . Parts Built . | . Authchips . | . Time . | . Total Part Build Rating . | . Parts Repaired . | . Time . | . Parts Recycled . | . Recycled Matter . | . Retrieved Matter . | . Retrieved Components . | . Parts Scanalyzed . | . Part Schematics Acquired . | . Parts Damaged . | . Bothacking | -11 ------------ Run | Yrd Used RIF Installer . | . Robots Hacked . | . Non-combat . | . Combat . | . Robot Hacks Applied . | . Relay Couplers Released . | . Fabnet Peak Effective % . | . Robots Rewired . | . Allies Hacked . | . Hacks Repelled . | . Allies | -11 -------- Run | Yrd Total Allies . | . Largest Group . | . Highest-Rated Group . | . Highest-Rated Ally . | . Total Orders . | . Ally Attacks . | . Total Damage . | . Kills . | . Allies Corrupted . | . Allies Melted . | . Intel | -11 ------- Run | Yrd Robot Analysis Total . | . Derelict Logs Recovered . | . Drone Launches . | . Drone Recoveries . | . Exploration | -11 ------------- Run | Yrd Turns Passed 932 | 932 Spaces Moved 116 | 116 Core 5 | 5 Treads 21 | 21 Legs . | . Wheels 90 | 90 Hover . | . Flight . | . Fastest Speed 50 | 50 Average Speed 102 | 102 Slowest Speed 160 | 160 Overloaded Moves . | . Propulsion Burnouts . | . Robots Hopped . | . Cave-ins Triggered . | . Exploration Rate (%) 14 | 14 Regions Visited . Branch Regions . Pre-discovered Areas . | . Known Exits Taken . | . Unknown Exits Taken . | . Scrap Searched . | . Spaces Dug . | . Terrain Destroyed . | . Melee . | . Projectile . | . AOE . | . Terrain Rammed . | . Walls Destroyed . | . Machines Disabled . | . Actions | -11 --------- Run | Yrd Total 906 | 906 Wait 747 | 747 Move 116 | 116 Hop . | . Pick Up 13 | 13 Fast Attach . | . Attach 9 | 9 Detach . | . Swap 2 | 2 Drop 4 | 4 Fire 15 | 15 Melee . | . Ram . | . Kick . | . Crush . | . Escape Stasis . | . Rewire . | . Trap . | . Miscellaneous . | . Route ------- -11/Scrapyard (discovered 1 exit: [*Mat]) History --------- Turn | Location | Event 12 | -11/Scrapyard | Discovered new exit (range 16) 870 | -11/Scrapyard | Assembled infested the area 914 | -11/Scrapyard | Core integrity fell below 50% 930 | -11/Scrapyard | Core integrity fell below 20% 933 | -11/Scrapyard | Destroyed by as-42823 with Assembled Rifle Last Messages --------------- The unstable cave ceiling collapses. as-93158 destroyed. as-18159 destroyed. The unstable cave ceiling collapses. D-53 Grenadier destroyed. Switching to secondary target: as-71504. as-71504 destroyed. Wheel destroyed. as-66765 destroyed. Switching to secondary target: as-63078. Knocked back. as-92766 destroyed. Switching to secondary target: as-31030. Ion Engine destroyed. as-31030 destroyed. Sml. Laser destroyed. The unstable cave ceiling collapses. Sml. Laser destroyed. Com. Wheel destroyed. Assault Rifle destroyed. Map ----- +----------------------------------------------------+ | ??????????????????????????? ?????????????????? | | ??????????????????????????? ??????????????????? | | ???????????????????????????# #??????????????????? | | ???????????????????????????# #??????????????????? | | ???????????????????????????# #??????????????????? | | ???????????????????????????# #??????????????????? | | ???????????????????????????# #??????????????????? | | ???????????????????????????# #??????????????????? | | ???????????????????????????# #??????????????????? | | ???????????????????????????# #??????????????????? | | ???????????????????????????# ##?????????????????? | | ?????????????????????????### ##????????????????? | | ???????????????????????## #????????????????? | | ????????????????????#### # #????????????????? | | ????????????????????# % ##???????????????? | | ????????????????????# #???????????????? | | ????????????????????# ########?????????? | | ????????????????????# #?????????? | | ????????????????????# =%!# #?????????? | | ????????????????????# # #?????????? | | ??????????????############ # #?????????? | | ??????????????# aa # #?????????? | | ??????????????# %% a# # #?????????? | | ??????????????# a #?????????? | | ??????????????# # # #?????????? | | ??????????????# @ # "# #?????????? | | ??????????????##############"%#########??????????? | | ???????????##########???# " #???????????????? | | ???????????# #???# #???????????????? | | ???????????# = #???# ######??????????? | | ???????????# = ##### ##?????????? | | ???????????# = #?????????? | | ???????????# = # ##?????????? | | ???????????# ##### < # #??????????? | | ???????????# #???# ## #??????????? | | ???????????# #???############ ##??????????? | | ???????????##########??????????????? ???????????? | | ?????????????????????????????????????????????????? | | ?????????????????????????????????????????????????? | | ?????????????????????????????????????????????????? | | ?????????????????????????????????????????????????? | | ?????????????????????????????????????????????????? | | ?????????????????????????????????????????????????? | | ?????????????????????????????????????????????????? | | ?????????????????????????????????????????????????? | | ?????????????????????????????????????????????????? | | ?????????????????????????????????????????????????? | | ?????????????????????????????????????????????????? | | ?????????????????????????????????????????????????? | | ?????????????????????????????????????????????????? | +----------------------------------------------------+ Best States ------------- Heat Dissipation 25 Energy Generation 10 Energy Capacity 250 Matter Stores 295 Matter Capacity 300 Sight Range 16 Terrain Scan Density 10 Evasion (%) 42 Recoil Reduction 2 Item Schematics ----------------- None Robot Schematics ------------------ None Fabricated ------------ Nothing Alien Tech Used ----------------- None Achievements -------------- Curiosity Killed The Cat Hunted Challenges ------------ None Game ------ Seed GaussMiningCharger Manual? 0 Play Time 00:07:34 Cumulative 2.9 hours Start 2024.04.03 @ 10:49:39 End 2024.04.03 @ 10:53:34 Sessions 0 Manual Loads 0 Difficulty Rogue Special Mode None Game No. 5 Rogue 5 Adventurer 0 Explorer 0 Win Type - Total 0 Types 0/0/0/0/0/0/0/0/0 Lore% 7 Gallery% 7 Achievement% 9 Wizard Run 0 Options --------- Layout 1 ASCII 0 Keyboard 0 Movement Numpad Keybinds 0 Fullscreen 1 Font 24/Smallcaps Map View 50x35 Zoom Use 0% Tactical HUD 0 Map Filters NONE Filters NONE Steam 1 RUN: 9cb79d47-aee7-4b2e-82d1-72d8750036b4